[Event "Titled Tuesday Blitz May 9 Early 2023"]
[White "Hayrapetyan, Hovik"]
[Black "Rosenberg, Evan S"]
[WhiteFideId "13302639"]
[BlackFideId "2019299"]
[WhiteElo "2348"]
[BlackElo "2295"]
[Result "1-0"]
[Round "11"]
[TimeControl "180+2"]
[Date "2023.05.09"]
[WhiteClock "0:00:07"]
[BlackClock "0:00:00"]

1. d4 {[%clk 0:03:00]}  d5 {[%clk 0:02:59]} 2. c4 {[%clk 0:02:59]}  e6 {[%clk 0:03:00]} 3. Nc3 {[%clk 0:02:58]}  c5 {[%clk 0:03:00]} 4. cxd5 {[%clk 0:02:54]}  cxd4 {[%clk 0:03:01]} 5. Qa4+ {[%clk 0:02:53]}  Bd7 {[%clk 0:03:01]} 6. Qxd4 {[%clk 0:02:53]}  exd5 {[%clk 0:03:01]} 7. Qxd5 {[%clk 0:02:53]}  Nf6 {[%clk 0:03:02]} 8. Qd1 {[%clk 0:02:54]}  Bc5 {[%clk 0:03:01]} 9. e3 {[%clk 0:02:52]}  O-O {[%clk 0:03:02]} 10. Nf3 {[%clk 0:02:52]}  Qe7 {[%clk 0:03:02]} 11. Be2 {[%clk 0:02:50]}  Rd8 {[%clk 0:03:02]} 12. O-O {[%clk 0:02:29]}  Nc6 {[%clk 0:02:59]} 13. Bd2 {[%clk 0:02:26]}  Ne5 {[%clk 0:02:53]} 14. Qb3 {[%clk 0:02:23]}  Bc6 {[%clk 0:02:42]} 15. Rad1 {[%clk 0:02:20]}  Nxf3+ {[%clk 0:02:30]} 16. Bxf3 {[%clk 0:02:19]}  Bxf3 {[%clk 0:02:30]} 17. gxf3 {[%clk 0:02:20]}  Bd6 {[%clk 0:01:56]} 18. Ne2 {[%clk 0:02:15]}  Qe5 {[%clk 0:01:45]} 19. Ng3 {[%clk 0:02:12]}  h5 {[%clk 0:01:39]} 20. Bc3 {[%clk 0:01:16]}  Qg5 {[%clk 0:01:32]} 21. Bxf6 {[%clk 0:01:16]}  Qxf6 {[%clk 0:01:06]} 22. Qxb7 {[%clk 0:00:52]}  h4 {[%clk 0:00:54]} 23. Ne2 {[%clk 0:00:50]}  Rab8 {[%clk 0:00:39]} 24. Qe4 {[%clk 0:00:49]}  Rb4 {[%clk 0:00:37]} 25. Rd4 {[%clk 0:00:45]}  Rxd4 {[%clk 0:00:30]} 26. Nxd4 {[%clk 0:00:40]}  h3 {[%clk 0:00:16]} 27. f4 {[%clk 0:00:38]}  Bxf4 {[%clk 0:00:13]} 28. Kh1 {[%clk 0:00:25]}  Bxe3 {[%clk 0:00:10]} 29. Nf5 {[%clk 0:00:16]}  Bg5 {[%clk 0:00:05]} 30. f4 {[%clk 0:00:14]}  Bh6 {[%clk 0:00:04]} 31. Ng3 {[%clk 0:00:11]}  Qxb2 {[%clk 0:00:04]} 32. Qf3 {[%clk 0:00:07]}  Rd3 {[%clk 0:00:03]} 33. Qa8+ {[%clk 0:00:07]}  Kh7 {[%clk 0:00:02]} 34. Qe4+ {[%clk 0:00:07]}  g6 {[%clk 0:00:03]} 35. f5 {[%clk 0:00:08]}  Re3 {[%clk 0:00:00]} 36. fxg6+ {[%clk 0:00:07]} 1-0


[Site "https://www.chess.com"]

[Event "Titled Tuesday Blitz May 9 Early 2023"]
[White "Zhu, Jiner"]
[Black "Bettalli, Francesco"]
[WhiteFideId "8608059"]
[BlackFideId "2816453"]
[WhiteElo "2384"]
[BlackElo "2216"]
[Result "1-0"]
[Round "11"]
[TimeControl "180+2"]
[Date "2023.05.09"]
[WhiteClock "0:00:13"]
[BlackClock "0:01:10"]

1. c4 {[%clk 0:03:00]}  g6 {[%clk 0:02:50]} 2. d4 {[%clk 0:02:58]}  Bg7 {[%clk 0:02:50]} 3. Nc3 {[%clk 0:02:59]}  c5 {[%clk 0:02:51]} 4. d5 {[%clk 0:02:58]}  Bxc3+ {[%clk 0:02:51]} 5. bxc3 {[%clk 0:02:57]}  f5 {[%clk 0:02:52]} 6. g4 {[%clk 0:02:42]}  fxg4 {[%clk 0:02:45]} 7. h3 {[%clk 0:02:38]}  gxh3 {[%clk 0:02:41]} 8. Nxh3 {[%clk 0:02:37]}  d6 {[%clk 0:02:42]} 9. Ng5 {[%clk 0:02:35]}  h6 {[%clk 0:02:41]} 10. Qd3 {[%clk 0:02:27]}  Bf5 {[%clk 0:02:40]} 11. e4 {[%clk 0:02:26]}  Bd7 {[%clk 0:02:38]} 12. Bh3 {[%clk 0:01:51]}  Bxh3 {[%clk 0:02:32]} 13. Rxh3 {[%clk 0:01:52]}  Qd7 {[%clk 0:02:31]} 14. Ne6 {[%clk 0:01:42]}  Na6 {[%clk 0:02:31]} 15. e5 {[%clk 0:01:41]}  Kf7 {[%clk 0:02:22]} 16. Rf3+ {[%clk 0:01:40]}  Nf6 {[%clk 0:02:22]} 17. exf6 {[%clk 0:01:40]}  exf6 {[%clk 0:02:22]} 18. Bd2 {[%clk 0:01:29]}  Nc7 {[%clk 0:02:22]} 19. Nf4 {[%clk 0:01:12]}  Rae8+ {[%clk 0:02:20]} 20. Kf1 {[%clk 0:01:12]}  Rhg8 {[%clk 0:02:14]} 21. Rg3 {[%clk 0:01:09]}  f5 {[%clk 0:02:11]} 22. Rf3 {[%clk 0:01:09]}  Kg7 {[%clk 0:02:04]} 23. Re1 {[%clk 0:01:05]}  Rxe1+ {[%clk 0:02:00]} 24. Bxe1 {[%clk 0:01:06]}  g5 {[%clk 0:01:56]} 25. Ne6+ {[%clk 0:00:58]}  Nxe6 {[%clk 0:01:54]} 26. dxe6 {[%clk 0:00:57]}  Qxe6 {[%clk 0:01:55]} 27. Rxf5 {[%clk 0:00:56]}  Re8 {[%clk 0:01:48]} 28. Bd2 {[%clk 0:00:55]}  Qe4 {[%clk 0:01:46]} 29. Qxe4 {[%clk 0:00:49]}  Rxe4 {[%clk 0:01:47]} 30. Rd5 {[%clk 0:00:47]}  Rxc4 {[%clk 0:01:46]} 31. Rxd6 {[%clk 0:00:47]}  Ra4 {[%clk 0:01:46]} 32. Rd7+ {[%clk 0:00:47]}  Kg6 {[%clk 0:01:46]} 33. Rxb7 {[%clk 0:00:46]}  Rxa2 {[%clk 0:01:46]} 34. Be3 {[%clk 0:00:47]}  Rc2 {[%clk 0:01:41]} 35. Bxc5 {[%clk 0:00:45]}  Rxc3 {[%clk 0:01:41]} 36. Bxa7 {[%clk 0:00:46]}  h5 {[%clk 0:01:40]} 37. Be3 {[%clk 0:00:44]}  g4 {[%clk 0:01:36]} 38. Rb6+ {[%clk 0:00:41]}  Kf5 {[%clk 0:01:36]} 39. Rb5+ {[%clk 0:00:40]}  Ke4 {[%clk 0:01:37]} 40. Kg2 {[%clk 0:00:36]}  h4 {[%clk 0:01:37]} 41. Rb4+ {[%clk 0:00:35]}  Kd3 {[%clk 0:01:28]} 42. Rxg4 {[%clk 0:00:35]}  Ke2 {[%clk 0:01:29]} 43. Rxh4 {[%clk 0:00:34]}  Rc8 {[%clk 0:01:29]} 44. Rg4 {[%clk 0:00:33]}  Rf8 {[%clk 0:01:29]} 45. Kg3 {[%clk 0:00:32]}  Rf3+ {[%clk 0:01:29]} 46. Kg2 {[%clk 0:00:32]}  Rf8 {[%clk 0:01:29]} 47. Rg5 {[%clk 0:00:32]}  Rf7 {[%clk 0:01:28]} 48. Re5 {[%clk 0:00:31]}  Kd1 {[%clk 0:01:23]} 49. f4 {[%clk 0:00:29]}  Ke2 {[%clk 0:01:21]} 50. Bf2+ {[%clk 0:00:18]}  Kd3 {[%clk 0:01:21]} 51. Kf3 {[%clk 0:00:18]}  Kc4 {[%clk 0:01:19]} 52. f5 {[%clk 0:00:18]}  Kd3 {[%clk 0:01:19]} 53. Kf4 {[%clk 0:00:19]}  Rh7 {[%clk 0:01:18]} 54. f6 {[%clk 0:00:17]}  Kc4 {[%clk 0:01:18]} 55. Kf5 {[%clk 0:00:16]}  Rh4 {[%clk 0:01:18]} 56. Be3 {[%clk 0:00:15]}  Rh5+ {[%clk 0:01:16]} 57. Bg5 {[%clk 0:00:15]}  Kd4 {[%clk 0:01:16]} 58. f7 {[%clk 0:00:13]}  Rh8 {[%clk 0:01:15]} 59. Re8 {[%clk 0:00:13]}  Rh1 {[%clk 0:01:11]} 60. f8=Q {[%clk 0:00:12]}  Rf1+ {[%clk 0:01:10]} 61. Bf4 {[%clk 0:00:13]} 1-0


[Site "https://www.chess.com"]

[Event "Titled Tuesday Blitz May 9 Early 2023"]
[White "Rosen, Eric"]
[Black "koncheto"]
[WhiteFideId "2032562"]
[WhiteElo "2331"]
[BlackElo "2466"]
[Result "0-1"]
[Round "11"]
[TimeControl "180+2"]
[Date "2023.05.09"]
[WhiteClock "0:00:18"]
[BlackClock "0:00:14"]

1. d4 {[%clk 0:03:00]}  Nf6 {[%clk 0:02:58]} 2. Bf4 {[%clk 0:03:00]}  e6 {[%clk 0:02:58]} 3. e3 {[%clk 0:03:00]}  c5 {[%clk 0:02:58]} 4. Nf3 {[%clk 0:03:01]}  d5 {[%clk 0:02:58]} 5. Nbd2 {[%clk 0:03:01]}  Bd6 {[%clk 0:02:59]} 6. Bb5+ {[%clk 0:03:00]}  Nc6 {[%clk 0:02:56]} 7. O-O {[%clk 0:03:00]}  O-O {[%clk 0:02:54]} 8. c3 {[%clk 0:02:47]}  Qc7 {[%clk 0:02:50]} 9. Bg3 {[%clk 0:02:27]}  Bxg3 {[%clk 0:02:42]} 10. hxg3 {[%clk 0:02:28]}  Nd7 {[%clk 0:02:37]} 11. e4 {[%clk 0:02:11]}  a6 {[%clk 0:02:27]} 12. exd5 {[%clk 0:02:05]}  axb5 {[%clk 0:02:24]} 13. dxc6 {[%clk 0:02:05]}  bxc6 {[%clk 0:02:23]} 14. Ne4 {[%clk 0:02:02]}  cxd4 {[%clk 0:02:20]} 15. Qxd4 {[%clk 0:02:01]}  c5 {[%clk 0:02:15]} 16. Qd6 {[%clk 0:01:48]}  Qxd6 {[%clk 0:01:59]} 17. Nxd6 {[%clk 0:01:49]}  b4 {[%clk 0:01:59]} 18. cxb4 {[%clk 0:01:36]}  cxb4 {[%clk 0:01:56]} 19. Rfd1 {[%clk 0:01:34]}  Ba6 {[%clk 0:01:46]} 20. a3 {[%clk 0:01:20]}  Be2 {[%clk 0:01:27]} 21. Rd4 {[%clk 0:01:07]}  bxa3 {[%clk 0:01:23]} 22. Rxa3 {[%clk 0:00:57]}  Rab8 {[%clk 0:01:10]} 23. b4 {[%clk 0:00:36]}  g6 {[%clk 0:00:50]} 24. Ra7 {[%clk 0:00:34]}  Bxf3 {[%clk 0:00:46]} 25. Rxd7 {[%clk 0:00:29]}  Bd5 {[%clk 0:00:46]} 26. Rf4 {[%clk 0:00:25]}  f5 {[%clk 0:00:33]} 27. Rh4 {[%clk 0:00:25]}  h5 {[%clk 0:00:30]} 28. Rd4 {[%clk 0:00:06]}  Rfd8 {[%clk 0:00:31]} 29. Rxd8+ {[%clk 0:00:07]}  Rxd8 {[%clk 0:00:31]} 30. Nc4 {[%clk 0:00:07]}  Rb8 {[%clk 0:00:28]} 31. Ne5 {[%clk 0:00:07]}  g5 {[%clk 0:00:17]} 32. f4 {[%clk 0:00:07]}  g4 {[%clk 0:00:17]} 33. Kf2 {[%clk 0:00:06]}  Rb5 {[%clk 0:00:15]} 34. Nd3 {[%clk 0:00:03]}  Kf8 {[%clk 0:00:15]} 35. Nc5 {[%clk 0:00:03]}  Ke7 {[%clk 0:00:15]} 36. Nd3 {[%clk 0:00:02]}  Be4 {[%clk 0:00:13]} 37. Ne5 {[%clk 0:00:02]}  Rb7 {[%clk 0:00:09]} 38. Ng6+ {[%clk 0:00:02]}  Kf6 {[%clk 0:00:09]} 39. Ne5 {[%clk 0:00:03]}  Bd5 {[%clk 0:00:09]} 40. Nd3 {[%clk 0:00:03]}  Ra7 {[%clk 0:00:07]} 41. Ne1 {[%clk 0:00:01]}  Ra2+ {[%clk 0:00:07]} 42. Ke3 {[%clk 0:00:02]}  Ke7 {[%clk 0:00:07]} 43. Rd2 {[%clk 0:00:02]}  Ra3+ {[%clk 0:00:07]} 44. Rd3 {[%clk 0:00:02]}  Ra1 {[%clk 0:00:07]} 45. Kf2 {[%clk 0:00:01]}  Rb1 {[%clk 0:00:06]} 46. Rd4 {[%clk 0:00:01]}  Kd6 {[%clk 0:00:06]} 47. Nd3 {[%clk 0:00:01]}  Ra1 {[%clk 0:00:05]} 48. Nc5 {[%clk 0:00:01]}  Ra2+ {[%clk 0:00:04]} 49. Ke3 {[%clk 0:00:02]}  Rxg2 {[%clk 0:00:05]} 50. Nd3 {[%clk 0:00:01]}  Rxg3+ {[%clk 0:00:05]} 51. Kd2 {[%clk 0:00:01]}  h4 {[%clk 0:00:04]} 52. b5 {[%clk 0:00:01]}  h3 {[%clk 0:00:04]} 53. Nf2 {[%clk 0:00:01]}  h2 {[%clk 0:00:04]} 54. Ke2 {[%clk 0:00:01]}  Rg2 {[%clk 0:00:05]} 55. Rd1 {[%clk 0:00:01]}  Rxf2+ {[%clk 0:00:05]} 56. Kxf2 {[%clk 0:00:02]}  h1=Q {[%clk 0:00:05]} 57. Rd2 {[%clk 0:00:01]}  Qh2+ {[%clk 0:00:06]} 58. Ke1 {[%clk 0:00:02]}  Qxd2+ {[%clk 0:00:05]} 59. Kxd2 {[%clk 0:00:02]}  Kc5 {[%clk 0:00:06]} 60. b6 {[%clk 0:00:03]}  Kxb6 {[%clk 0:00:07]} 61. Ke3 {[%clk 0:00:03]}  Kc5 {[%clk 0:00:07]} 62. Kf2 {[%clk 0:00:04]}  Kd4 {[%clk 0:00:07]} 63. Kg3 {[%clk 0:00:05]}  Ke4 {[%clk 0:00:08]} 64. Kf2 {[%clk 0:00:06]}  Kxf4 {[%clk 0:00:08]} 65. Kg1 {[%clk 0:00:07]}  g3 {[%clk 0:00:09]} 66. Kf1 {[%clk 0:00:07]}  Kg4 {[%clk 0:00:09]} 67. Kg1 {[%clk 0:00:08]}  Kh3 {[%clk 0:00:10]} 68. Kf1 {[%clk 0:00:09]}  Kh2 {[%clk 0:00:10]} 69. Ke2 {[%clk 0:00:09]}  g2 {[%clk 0:00:11]} 70. Ke3 {[%clk 0:00:09]}  g1=Q+ {[%clk 0:00:11]} 71. Kf4 {[%clk 0:00:10]}  Qf2+ {[%clk 0:00:11]} 72. Ke5 {[%clk 0:00:11]}  f4 {[%clk 0:00:11]} 73. Kd6 {[%clk 0:00:11]}  Qe3 {[%clk 0:00:11]} 74. Ke7 {[%clk 0:00:11]}  f3 {[%clk 0:00:12]} 75. Kf6 {[%clk 0:00:11]}  f2 {[%clk 0:00:13]} 76. Ke7 {[%clk 0:00:12]}  Bg2 {[%clk 0:00:12]} 77. Kd6 {[%clk 0:00:13]}  e5 {[%clk 0:00:13]} 78. Ke7 {[%clk 0:00:13]}  Qd4 {[%clk 0:00:13]} 79. Kf6 {[%clk 0:00:14]}  e4+ {[%clk 0:00:14]} 80. Kg5 {[%clk 0:00:15]}  e3 {[%clk 0:00:14]} 81. Kf5 {[%clk 0:00:15]}  f1=Q+ {[%clk 0:00:14]} 82. Kg6 {[%clk 0:00:16]}  Qdf4 {[%clk 0:00:14]} 83. Kh7 {[%clk 0:00:17]}  Qg5 {[%clk 0:00:14]} 84. Kh8 {[%clk 0:00:17]}  Qf8+ {[%clk 0:00:14]} 85. Kh7 {[%clk 0:00:18]}  Be4# {[%clk 0:00:14]} 0-1


[Site "https://www.chess.com"]

[Event "Titled Tuesday Blitz May 9 Early 2023"]
[White "Spitzl, Vinzent"]
[Black "Shukhman, Anna"]
[WhiteFideId "12901253"]
[BlackFideId "54180058"]
[WhiteElo "2225"]
[BlackElo "2235"]
[Result "1-0"]
[Round "11"]
[TimeControl "180+2"]
[Date "2023.05.09"]
[WhiteClock "0:00:38"]
[BlackClock "0:01:02"]

1. e4 {[%clk 0:03:00]}  c5 {[%clk 0:02:58]} 2. Nf3 {[%clk 0:02:58]}  a6 {[%clk 0:02:57]} 3. c3 {[%clk 0:02:57]}  d5 {[%clk 0:02:54]} 4. exd5 {[%clk 0:02:56]}  Qxd5 {[%clk 0:02:55]} 5. d4 {[%clk 0:02:57]}  Nf6 {[%clk 0:02:52]} 6. Be2 {[%clk 0:02:55]}  e6 {[%clk 0:02:52]} 7. Be3 {[%clk 0:02:54]}  cxd4 {[%clk 0:02:52]} 8. Qxd4 {[%clk 0:02:52]}  Nc6 {[%clk 0:02:51]} 9. Qd2 {[%clk 0:02:49]}  Be7 {[%clk 0:02:49]} 10. O-O {[%clk 0:02:49]}  O-O {[%clk 0:02:49]} 11. Rd1 {[%clk 0:02:44]}  b5 {[%clk 0:02:48]} 12. Nd4 {[%clk 0:02:39]}  Nxd4 {[%clk 0:02:38]} 13. Bxd4 {[%clk 0:02:33]}  Qf5 {[%clk 0:02:07]} 14. Bf3 {[%clk 0:02:29]}  Nd5 {[%clk 0:02:05]} 15. Qe1 {[%clk 0:02:23]}  Bb7 {[%clk 0:02:04]} 16. Nd2 {[%clk 0:02:21]}  Bf6 {[%clk 0:01:59]} 17. Bxf6 {[%clk 0:02:18]}  Qxf6 {[%clk 0:02:00]} 18. Ne4 {[%clk 0:02:17]}  Qg6 {[%clk 0:01:58]} 19. Nc5 {[%clk 0:02:08]}  Bc6 {[%clk 0:01:57]} 20. a4 {[%clk 0:02:03]}  bxa4 {[%clk 0:01:55]} 21. Nxa4 {[%clk 0:02:03]}  Rab8 {[%clk 0:01:54]} 22. b4 {[%clk 0:01:57]}  Nxb4 {[%clk 0:01:51]} 23. Bxc6 {[%clk 0:01:46]}  Nxc6 {[%clk 0:01:52]} 24. Nc5 {[%clk 0:01:44]}  a5 {[%clk 0:01:47]} 25. Nd7 {[%clk 0:01:44]}  Rfc8 {[%clk 0:01:41]} 26. Nxb8 {[%clk 0:01:43]}  Rxb8 {[%clk 0:01:42]} 27. Qe3 {[%clk 0:01:37]}  h5 {[%clk 0:01:38]} 28. h3 {[%clk 0:01:37]}  Rb2 {[%clk 0:01:34]} 29. Qc5 {[%clk 0:01:32]}  Qf6 {[%clk 0:01:12]} 30. Qxc6 {[%clk 0:01:10]}  Qxf2+ {[%clk 0:01:10]} 31. Kh1 {[%clk 0:01:10]}  h4 {[%clk 0:01:10]} 32. Rf1 {[%clk 0:01:07]}  Qg3 {[%clk 0:01:08]} 33. Qf3 {[%clk 0:01:06]}  Qg6 {[%clk 0:01:05]} 34. Rxa5 {[%clk 0:01:04]}  f6 {[%clk 0:01:05]} 35. Qg4 {[%clk 0:00:50]}  Qxg4 {[%clk 0:00:59]} 36. hxg4 {[%clk 0:00:50]}  Rc2 {[%clk 0:00:59]} 37. Rc5 {[%clk 0:00:47]}  Kf7 {[%clk 0:01:00]} 38. Kh2 {[%clk 0:00:45]}  Ke7 {[%clk 0:00:58]} 39. Rd1 {[%clk 0:00:45]}  g5 {[%clk 0:00:50]} 40. Rc7+ {[%clk 0:00:44]}  Ke8 {[%clk 0:00:50]} 41. Ra1 {[%clk 0:00:44]}  Kd8 {[%clk 0:00:49]} 42. Rg7 {[%clk 0:00:43]}  Rxc3 {[%clk 0:00:49]} 43. Ra8+ {[%clk 0:00:43]}  Rc8 {[%clk 0:00:50]} 44. Rg8+ {[%clk 0:00:43]}  Kd7 {[%clk 0:00:50]} 45. Raxc8 {[%clk 0:00:43]}  Kd6 {[%clk 0:00:51]} 46. Rgd8+ {[%clk 0:00:40]}  Ke5 {[%clk 0:00:52]} 47. Rc5+ {[%clk 0:00:40]}  Kf4 {[%clk 0:00:53]} 48. Rc4+ {[%clk 0:00:41]}  Ke3 {[%clk 0:00:52]} 49. Rf8 {[%clk 0:00:39]}  f5 {[%clk 0:00:52]} 50. gxf5 {[%clk 0:00:39]}  exf5 {[%clk 0:00:52]} 51. Rxf5 {[%clk 0:00:39]}  g4 {[%clk 0:00:53]} 52. Rxg4 {[%clk 0:00:39]}  h3 {[%clk 0:00:54]} 53. Kxh3 {[%clk 0:00:38]}  Kd3 {[%clk 0:00:55]} 54. Rgf4 {[%clk 0:00:36]}  Ke2 {[%clk 0:00:56]} 55. g4 {[%clk 0:00:36]}  Ke3 {[%clk 0:00:57]} 56. g5 {[%clk 0:00:37]}  Ke2 {[%clk 0:00:58]} 57. g6 {[%clk 0:00:37]}  Ke3 {[%clk 0:00:59]} 58. g7 {[%clk 0:00:38]}  Ke2 {[%clk 0:01:00]} 59. g8=Q {[%clk 0:00:38]}  Ke3 {[%clk 0:01:01]} 60. Qg3+ {[%clk 0:00:37]}  Ke2 {[%clk 0:01:01]} 61. Rf2+ {[%clk 0:00:38]}  Ke1 {[%clk 0:01:02]} 62. Qg1# {[%clk 0:00:38]} 1-0


[Site "https://www.chess.com"]

[Event "Titled Tuesday Blitz May 9 Early 2023"]
[White "Guerra Tulcan, Lenin"]
[Black "Fernandez Garcia, Gumersindo"]
[WhiteFideId "3601382"]
[BlackFideId "24516740"]
[WhiteElo "2368"]
[BlackElo "2093"]
[Result "0-1"]
[Round "11"]
[TimeControl "180+2"]
[Date "2023.05.09"]
[WhiteClock "0:00:16"]
[BlackClock "0:00:13"]

1. e4 {[%clk 0:03:00]}  c5 {[%clk 0:02:50]} 2. Nf3 {[%clk 0:03:00]}  e6 {[%clk 0:02:50]} 3. d4 {[%clk 0:02:59]}  cxd4 {[%clk 0:02:51]} 4. Nxd4 {[%clk 0:03:00]}  Nc6 {[%clk 0:02:51]} 5. Nc3 {[%clk 0:03:00]}  Nf6 {[%clk 0:02:52]} 6. Ndb5 {[%clk 0:02:59]}  Bb4 {[%clk 0:02:52]} 7. a3 {[%clk 0:02:57]}  Bxc3+ {[%clk 0:02:53]} 8. Nxc3 {[%clk 0:02:58]}  d5 {[%clk 0:02:53]} 9. exd5 {[%clk 0:02:57]}  exd5 {[%clk 0:02:54]} 10. Bd3 {[%clk 0:02:57]}  O-O {[%clk 0:02:54]} 11. O-O {[%clk 0:02:57]}  Bg4 {[%clk 0:02:55]} 12. f3 {[%clk 0:02:54]}  Bh5 {[%clk 0:02:55]} 13. Kh1 {[%clk 0:02:53]}  Re8 {[%clk 0:02:42]} 14. Bg5 {[%clk 0:02:52]}  Qd6 {[%clk 0:02:34]} 15. Bxf6 {[%clk 0:02:42]}  Qxf6 {[%clk 0:02:32]} 16. Nxd5 {[%clk 0:02:40]}  Qd6 {[%clk 0:02:28]} 17. Nc3 {[%clk 0:02:31]}  Rad8 {[%clk 0:02:28]} 18. Ne4 {[%clk 0:02:31]}  Qd4 {[%clk 0:02:24]} 19. Ng3 {[%clk 0:02:13]}  Bg6 {[%clk 0:02:17]} 20. Bxg6 {[%clk 0:02:14]}  hxg6 {[%clk 0:02:18]} 21. Qxd4 {[%clk 0:02:10]}  Rxd4 {[%clk 0:02:18]} 22. Rad1 {[%clk 0:02:05]}  Red8 {[%clk 0:02:19]} 23. Rxd4 {[%clk 0:02:04]}  Rxd4 {[%clk 0:02:20]} 24. Kg1 {[%clk 0:01:52]}  Rd2 {[%clk 0:02:09]} 25. Rf2 {[%clk 0:01:52]}  Rd1+ {[%clk 0:02:09]} 26. Nf1 {[%clk 0:01:51]}  Rb1 {[%clk 0:02:01]} 27. b4 {[%clk 0:01:23]}  Nd4 {[%clk 0:01:57]} 28. Rd2 {[%clk 0:01:17]}  Nb5 {[%clk 0:01:55]} 29. Rd8+ {[%clk 0:01:11]}  Kh7 {[%clk 0:01:54]} 30. Rd7 {[%clk 0:01:10]}  Nxa3 {[%clk 0:01:47]} 31. Rxb7 {[%clk 0:01:03]}  Nxc2 {[%clk 0:01:46]} 32. Kf2 {[%clk 0:01:03]}  Rxb4 {[%clk 0:01:43]} 33. Rxf7 {[%clk 0:00:59]}  a5 {[%clk 0:01:38]} 34. Ra7 {[%clk 0:00:59]}  Ra4 {[%clk 0:01:32]} 35. Nd2 {[%clk 0:00:57]}  Ra2 {[%clk 0:01:21]} 36. Ne4 {[%clk 0:00:56]}  Nd4+ {[%clk 0:01:07]} 37. Kg3 {[%clk 0:00:45]}  Nf5+ {[%clk 0:01:01]} 38. Kf4 {[%clk 0:00:42]}  Rxg2 {[%clk 0:00:45]} 39. Ng5+ {[%clk 0:00:36]}  Kh6 {[%clk 0:00:42]} 40. Ra8 {[%clk 0:00:28]}  Kh5 {[%clk 0:00:39]} 41. Rh8+ {[%clk 0:00:20]}  Nh6 {[%clk 0:00:38]} 42. Ne6 {[%clk 0:00:21]}  g5+ {[%clk 0:00:34]} 43. Ke3 {[%clk 0:00:21]}  Kg6 {[%clk 0:00:32]} 44. f4 {[%clk 0:00:21]}  Rxh2 {[%clk 0:00:25]} 45. Ra8 {[%clk 0:00:21]}  Ra2 {[%clk 0:00:18]} 46. fxg5 {[%clk 0:00:19]}  Nf7 {[%clk 0:00:18]} 47. Ra6 {[%clk 0:00:19]}  Nxg5 {[%clk 0:00:17]} 48. Nf4+ {[%clk 0:00:19]}  Kf5 {[%clk 0:00:17]} 49. Nd3 {[%clk 0:00:19]}  Ne6 {[%clk 0:00:17]} 50. Nc1 {[%clk 0:00:18]}  Ra3+ {[%clk 0:00:16]} 51. Kd2 {[%clk 0:00:19]}  g5 {[%clk 0:00:17]} 52. Ne2 {[%clk 0:00:17]}  g4 {[%clk 0:00:17]} 53. Nc3 {[%clk 0:00:17]}  g3 {[%clk 0:00:16]} 54. Ne2 {[%clk 0:00:17]}  g2 {[%clk 0:00:15]} 55. Ke1 {[%clk 0:00:18]}  Ra1+ {[%clk 0:00:13]} 56. Kf2 {[%clk 0:00:17]}  Ra2 {[%clk 0:00:14]} 57. Rxa5+ {[%clk 0:00:16]}  Rxa5 {[%clk 0:00:14]} 58. Kxg2 {[%clk 0:00:16]}  Nf4+ {[%clk 0:00:14]} 59. Kf3 {[%clk 0:00:16]}  Nxe2 {[%clk 0:00:13]} 60. Kxe2 {[%clk 0:00:16]}  Ke4 {[%clk 0:00:13]} 0-1


[Site "https://www.chess.com"]

[Event "Titled Tuesday Blitz May 9 Early 2023"]
[White "KorolDimitriy75"]
[Black "Danielyan, Vahe"]
[BlackFideId "13304828"]
[WhiteElo "2452"]
[BlackElo "2423"]
[Result "1-0"]
[Round "11"]
[TimeControl "180+2"]
[Date "2023.05.09"]
[WhiteClock "0:03:01"]
[BlackClock "0:01:55"]

1. d4 {[%clk 0:03:00]}  Nf6 {[%clk 0:02:58]} 2. c4 {[%clk 0:03:01]}  e6 {[%clk 0:02:58]} 3. Nc3 {[%clk 0:03:01]}  Bb4 {[%clk 0:02:58]} 4. Qc2 {[%clk 0:03:02]}  O-O {[%clk 0:02:55]} 5. e4 {[%clk 0:03:02]}  d5 {[%clk 0:02:54]} 6. cxd5 {[%clk 0:03:03]}  exd5 {[%clk 0:02:53]} 7. e5 {[%clk 0:03:04]}  Ne4 {[%clk 0:02:47]} 8. Bd3 {[%clk 0:03:04]}  c5 {[%clk 0:02:47]} 9. Ne2 {[%clk 0:03:04]}  cxd4 {[%clk 0:02:37]} 10. Nxd4 {[%clk 0:03:05]}  Nc6 {[%clk 0:02:36]} 11. Nxc6 {[%clk 0:03:05]}  bxc6 {[%clk 0:02:37]} 12. O-O {[%clk 0:03:05]}  Bf5 {[%clk 0:02:24]} 13. Nxe4 {[%clk 0:03:00]}  dxe4 {[%clk 0:02:04]} 14. Bxe4 {[%clk 0:03:01]}  Bxe4 {[%clk 0:02:02]} 15. Qxe4 {[%clk 0:03:02]}  Qd5 {[%clk 0:01:55]} 16. Qxb4 {[%clk 0:03:01]} 1-0


[Site "https://www.chess.com"]

[Event "Titled Tuesday Blitz May 9 Early 2023"]
[White "Garakov, Mikhael"]
[Black "Lehtosaari, Mauri"]
[WhiteFideId "4169034"]
[BlackFideId "501999"]
[WhiteElo "2347"]
[BlackElo "2519"]
[Result "1-0"]
[Round "11"]
[TimeControl "180+2"]
[Date "2023.05.09"]
[WhiteClock "0:00:20"]
[BlackClock "0:00:00"]

1. e4 {[%clk 0:03:00]}  d5 {[%clk 0:02:54]} 2. exd5 {[%clk 0:03:00]}  Qxd5 {[%clk 0:02:55]} 3. Nc3 {[%clk 0:02:59]}  Qd8 {[%clk 0:02:55]} 4. d4 {[%clk 0:02:59]}  Nf6 {[%clk 0:02:55]} 5. Nf3 {[%clk 0:02:59]}  Bg4 {[%clk 0:02:56]} 6. h3 {[%clk 0:02:53]}  Bxf3 {[%clk 0:02:55]} 7. Qxf3 {[%clk 0:02:53]}  c6 {[%clk 0:02:56]} 8. Be3 {[%clk 0:02:51]}  e6 {[%clk 0:02:55]} 9. Bd3 {[%clk 0:02:49]}  Nbd7 {[%clk 0:02:53]} 10. g4 {[%clk 0:02:48]}  Bb4 {[%clk 0:02:46]} 11. g5 {[%clk 0:02:40]}  Nd5 {[%clk 0:02:45]} 12. Bd2 {[%clk 0:02:41]}  Nxc3 {[%clk 0:02:42]} 13. bxc3 {[%clk 0:02:40]}  Bd6 {[%clk 0:02:39]} 14. c4 {[%clk 0:02:11]}  Qe7 {[%clk 0:02:26]} 15. Rb1 {[%clk 0:02:03]}  Rb8 {[%clk 0:02:20]} 16. h4 {[%clk 0:01:54]}  e5 {[%clk 0:02:15]} 17. O-O {[%clk 0:01:51]}  O-O {[%clk 0:02:13]} 18. Rfe1 {[%clk 0:01:39]}  f5 {[%clk 0:02:10]} 19. gxf6 {[%clk 0:01:25]}  Rxf6 {[%clk 0:02:06]} 20. Qh5 {[%clk 0:00:58]}  g6 {[%clk 0:01:42]} 21. Qg4 {[%clk 0:00:58]}  Qf7 {[%clk 0:01:25]} 22. c5 {[%clk 0:00:44]}  Bc7 {[%clk 0:00:53]} 23. dxe5 {[%clk 0:00:45]}  Re6 {[%clk 0:00:20]} 24. Bc4 {[%clk 0:00:42]}  Rbe8 {[%clk 0:00:21]} 25. Rxb7 {[%clk 0:00:39]}  Bxe5 {[%clk 0:00:16]} 26. Bc3 {[%clk 0:00:22]}  Bh2+ {[%clk 0:00:00]} 27. Kg2 {[%clk 0:00:20]} 1-0


[Site "https://www.chess.com"]